bitfinex/quotes_ETHUSD_20220202
["timestamp","ask_amount","ask_price","bid_price","bid_amount"]
[1643809982362,0.1799,2778.5,2777.5,2.00025905]
[1643809982556,0.88218819,2778.5,2777.5,2.00025905]
[1643809982756,0.88218819,2778.5,2777.9,0.00270013]
[1643809982957,0.88218819,2778.5,2778.0,0.21199864]
[1643809982958,0.70228819,2778.5,2778.0,0.21199864]
[1643809983759,0.1799,2778.7,2778.0,0.21199864]
[1643809983959,0.1799,2778.7,2778.1,0.00448499]
[1643809984758,0.1799,2778.9,2778.1,0.00448499]
[1643809984964,0.6713626,2778.7,2778.0,0.21199864]
[1643809985159,0.6713626,2778.7,2778.3,0.00448485]
[1643809985359,2.25804992,2778.9,2778.3,0.00448485]
[1643809985360,0.1799,2778.9,2778.3,0.00448485]
[1643809985561,0.1799,2779.0,2778.3,0.00448485]
[1643809985760,0.1799,2779.1,2778.3,0.00448485]
[1643809985961,0.1799,2779.2,2778.2,0.8997]
[1643809986211,1.52747524,2779.1,2778.2,0.8997]
[1643809986408,1.52747524,2779.1,2778.6,0.00448456]
[1643809986612,0.93417045,2778.8,2778.6,0.00448456]
[1643809987213,0.93417045,2778.8,2777.8,1.3412]
[1643809987415,4.5276922,2778.7,2777.8,1.3412]
[1643809987620,0.1799,2778.6,2778.1,0.01081022]
[1643809987815,0.19636905,2778.3,2778.1,0.01081022]
[1643809988017,1.09646905,2778.3,2778.1,0.01081022]
[1643809988614,1.09646905,2778.3,2777.8,0.1799]
[1643809988815,0.1799,2778.4,2778.1,0.00449111]
[1643809989016,1.1270278,2778.8,2778.1,0.00449111]
[1643809989017,0.1799,2778.7,2778.1,0.00449111]
[1643809989217,3.28268218,2778.8,2778.1,0.00449111]
[1643809989218,1.1270278,2778.8,2778.1,0.00449111]
[1643809989421,2.13795986,2778.7,2778.1,0.00449111]
[1643809989616,2.13795986,2778.7,2777.4,0.1799]
[1643809989617,2.31785986,2778.7,2777.4,0.1799]
[1643809989873,2.31785986,2778.7,2778.3,0.00449092]
[1643809990070,0.21928186,2778.4,2778.3,0.00449092]
[1643809990267,2.29936169,2778.7,2778.3,0.00449092]
[1643809990664,0.1799,2778.7,2778.3,0.00449092]
[1643809990964,0.17988,2778.6,2777.5,1.79974]
[1643809991166,1.3069278,2778.8,2778.4,0.00449082]
[1643809991365,1.11407045,2778.8,2778.4,0.00449082]
[1643809991565,0.93417045,2778.8,2778.4,0.00449082]
[1643809992266,0.93417045,2778.8,2778.5,0.00449072]
[1643809993365,0.93417045,2778.8,2778.0,1.79956]
[1643809993601,0.93417045,2778.8,2778.5,0.00449067]
[1643809994405,0.93417045,2778.8,2777.7,3.20931]
[1643809994710,0.93417045,2778.8,2778.5,0.00449067]
[1643809995110,0.1799,2779.2,2778.5,0.00449067]
[1643809995710,0.1799,2779.2,2778.1,0.20106765]
[1643809995914,0.18436948,2779.3,2778.7,0.00449048]
[1643809996118,1.5275409,2779.2,2778.7,0.00449048]
[1643809996311,0.84295272,2778.8,2778.7,0.00449048]
[1643809996516,0.84295272,2778.8,2778.3,0.01796479]
[1643809996717,0.17988,2779.1,2778.3,0.01796479]
[1643809996911,0.41081311,2779.1,2778.2,1.10864256]
[1643809997406,1.4799,2779.4,2778.3,1.94912012]
[1643809997407,0.17988,2779.3,2778.3,1.94912012]
[1643809997600,0.17988,2779.3,2778.4,0.8996]
[1643809998402,0.17988,2779.3,2778.6,0.00269608]
[1643809999406,0.17988,2779.3,2778.7,0.89955]
[1643809999808,0.43829805,2779.3,2778.7,0.89955]
[1643810000107,0.25841805,2779.3,2778.7,0.89955]
[1643810000815,0.00448988,2779.1,2778.7,0.89955]
[1643810001508,0.00448988,2779.1,2778.7,2.89107542]
[1643810001708,19.7585368,2779.6,2778.7,0.89955]
[1643810001908,0.00448998,2779.0,2778.7,1.41655]
[1643810002108,0.00448998,2779.0,2778.7,1.66721228]
[1643810002509,0.00448998,2779.0,2778.8,1.92367131]
[1643810002912,19.7585368,2779.6,2778.8,1.92367131]
[1643810003112,19.7585368,2779.6,2779.0,0.89947]
[1643810003317,19.7585368,2779.6,2779.2,0.24094604]
[1643810003515,19.7585368,2779.6,2779.3,2.0]
[1643810003726,19.7585368,2779.6,2779.3,1.117]
[1643810003917,19.7585368,2779.6,2779.3,1.13497629]
[1643810004218,19.7585368,2779.6,2779.5,0.3]
[1643810004416,19.76302625,2779.6,2779.5,0.817]
[1643810004616,19.76302625,2779.6,2779.5,3.667]
[1643810004875,19.76302625,2779.6,2779.5,3.367]
[1643810005274,19.7585368,2779.6,2779.5,0.517]
[1643810005879,19.7585368,2779.6,2779.5,0.817]
[1643810006076,19.7585368,2779.6,2779.5,0.517]
[1643810006278,19.7585368,2779.6,2779.4,0.89926]
[1643810006883,19.7585368,2779.6,2779.4,1.79859]
[1643810007882,19.7585368,2779.6,2779.5,0.817]
[1643810008082,19.7630262,2779.6,2779.5,0.817]
[1643810008489,19.7630262,2779.6,2779.5,1.08637529]
[1643810008915,19.7585368,2779.6,2779.5,1.08637529]
[1643810010606,19.7585368,2779.6,2779.5,4.18637529]
[1643810011009,19.7585368,2779.6,2779.5,4.15878529]
[1643810011206,19.7585368,2779.6,2779.5,1.05878529]
[1643810012360,19.7585368,2779.6,2779.5,1.23870529]
[1643810013670,19.7585368,2779.6,2779.5,0.78941]
[1643810013865,19.7585368,2779.6,2779.4,2.69792]
[1643810013866,19.7585368,2779.6,2779.4,0.89926]
[1643810015267,19.7630262,2779.6,2779.4,0.89926]
[1643810016203,19.7585368,2779.6,2779.4,0.89926]
[1643810016399,19.7630262,2779.6,2779.2,1.79852]
[1643810017101,0.92124059,2779.5,2779.2,1.79852]
[1643810017501,0.92573009,2779.5,2779.2,1.79852]
[1643810018610,0.92124059,2779.5,2779.2,1.79852]
[1643810018814,0.92573014,2779.5,2779.2,1.79852]
[1643810019410,0.92573014,2779.5,2779.1,0.08819997]
[1643810019411,0.23324496,2779.1,2779.0,1.79911]
[1643810019610,1.24734496,2779.1,2779.0,1.79911]
[1643810019871,6.25,2779.0,2778.2,2.92361196]
[1643810020072,1.52755267,2778.9,2778.6,0.00449085]
[1643810020272,6.07988,2778.7,2778.6,0.00449085]
[1643810020476,7.79984085,2778.7,2778.6,0.00449085]
[1643810020669,1.89984085,2778.7,2778.6,0.00449085]
[1643810020870,1.89984085,2778.7,2777.9,1.79983]
[1643810021069,0.86987377,2778.0,2777.9,1.79983]
[1643810021270,0.2555376,2778.2,2777.9,1.79983]
[1643810021871,0.1799,2778.6,2777.9,1.79983]
[1643810022272,0.90020678,2778.3,2777.9,1.79983]
[1643810022472,0.1799,2778.6,2777.9,1.79983]
[1643810023484,0.1799,2778.6,2777.9,2.39983]
[1643810023706,0.78573353,2778.5,2778.0,0.8998045]
[1643810024009,0.1799,2778.9,2778.2,1.79955]
[1643810024804,0.18438306,2779.0,2778.4,0.00448407]
[1643810025002,0.71770647,2779.0,2778.4,0.00448407]
[1643810025204,0.71770647,2779.0,2778.4,0.90421407]
[1643810025804,0.17988,2779.1,2778.4,0.89973]
[1643810026005,0.00448315,2779.0,2778.6,0.00448393]
[1643810027009,0.78642812,2779.1,2778.6,0.8997]
[1643810027209,0.00448322,2779.0,2778.6,0.90418399]
[1643810028058,0.00448322,2779.0,2778.6,1.50418399]
[1643810028258,0.1799,2779.5,2778.7,1.79923]
[1643810028458,0.00448322,2779.0,2778.7,1.79923]
[1643810029067,0.00448322,2779.0,2778.8,0.19661902]
[1643810029265,0.79412654,2779.4,2778.8,0.19661902]
[1643810029460,1.52732873,2779.3,2778.8,1.09622902]
[1643810029660,0.00448328,2779.0,2778.8,1.09622902]
[1643810030262,0.00448328,2779.0,2778.9,0.6]
[1643810030464,0.00448328,2779.0,2778.9,6.567]
[1643810030662,19.7585368,2779.6,2779.1,0.89938]
[1643810030862,19.7585368,2779.6,2779.0,1.79875]
[1643810030863,19.7585368,2779.6,2779.4,0.26938225]
[1643810031137,19.7585368,2779.6,2779.4,2.36809125]
[1643810031321,19.7585368,2779.6,2779.4,3.26744125]
[1643810031524,14.3629368,2779.6,2779.4,3.26744125]
[1643810031722,14.3629368,2779.6,2779.4,2.96744125]
[1643810032122,8.9717395,2779.6,2779.4,2.98664293]
[1643810032721,3.5761495,2779.6,2779.4,2.98664293]
[1643810033026,3.5716668,2779.6,2779.4,3.88599293]
[1643810033226,3.5761495,2779.6,2779.4,3.88599293]
[1643810033421,3.5761495,2779.6,2779.5,3.317]
[1643810033622,3.5761495,2779.6,2779.5,0.817]
[1643810033824,3.5761495,2779.6,2779.5,1.117]
[1643810034227,3.5716668,2779.6,2779.5,1.117]
[1643810034426,3.5716668,2779.6,2779.5,7.24692]
[1643810034427,2.92588092,2779.6,2779.5,7.24692]
[1643810034627,2.92588092,2779.6,2779.5,1.117]
[1643810034862,2.92588092,2779.6,2779.5,0.817]
[1643810035261,2.92588092,2779.6,2779.5,1.117]
[1643810035663,2.92588092,2779.6,2779.5,1.29692]
[1643810035863,0.096,2780.0,2779.6,8.11734357]
[1643810036064,0.096,2780.0,2779.7,1.4160817]
[1643810036265,0.096,2780.0,2779.8,2.6972543]
[1643810036467,0.00264451,2780.5,2779.8,3.2142543]
[1643810036666,0.00264451,2780.5,2779.9,0.3]
[1643810036867,0.00264451,2780.5,2780.3,0.24541898]
[1643810037070,2.37229039,2780.9,2780.4,0.89913]
[1643810037071,1.70635251,2780.8,2780.4,0.89913]
[1643810037268,1.70653251,2780.7,2780.3,2.86019136]
[1643810037466,1.70635251,2780.6,2779.4,1.1455]
[1643810037665,1.70635251,2780.6,2779.2,0.08819997]
[1643810037666,1.52665251,2780.5,2779.2,0.08819997]
[1643810037865,0.1797,2780.4,2779.2,0.08819997]
[1643810038066,0.00179773,2780.1,2779.2,0.08819997]
[1643810038267,0.70192471,2779.8,2779.2,0.33230014]
[1643810038471,0.21003752,2780.1,2779.5,1.7988393]
[1643810038709,1.52703062,2780.0,2779.6,0.6]
[1643810038907,1.52703062,2779.9,2779.6,1.49942]
[1643810039107,1.52703062,2779.8,2779.6,1.49942]
[1643810039306,0.00179773,2779.9,2779.6,1.49942]
[1643810040008,1.5288189,2779.9,2779.6,1.49942]
[1643810040208,1.52702117,2779.9,2779.6,1.49942]
[1643810040410,1.53150363,2779.9,2779.6,2.39884]
[1643810040606,1.52702117,2779.8,2779.6,2.39884]
[1643810041008,1.52702117,2779.8,2779.6,3.2982458]
[1643810041409,0.1797,2780.2,2779.6,3.2982458]
[1643810041606,0.00448251,2779.8,2779.6,2.9982458]
[1643810041808,0.00448251,2779.8,2779.2,0.08819997]
[1643810041809,1.70701208,2779.7,2779.1,3.60145376]
[1643810042008,3.68452053,2779.6,2779.2,0.89956]
[1643810042211,1.70683208,2779.5,2779.2,0.89956]
[1643810042464,0.1797,2779.5,2779.3,0.89953]
[1643810042762,0.00448251,2779.8,2779.3,0.89953]
[1643810042763,0.1797,2779.7,2779.3,0.89953]
[1643810042969,1.52713999,2779.6,2779.4,0.3]
[1643810043162,1.52713999,2779.6,2779.4,1.19944]
[1643810043368,1.52713999,2779.6,2779.4,2.99825]
[1643810043968,0.1797,2779.7,2779.4,2.99825]
[1643810044169,0.00448238,2779.8,2779.4,2.99825]
[1643810044368,1.52708034,2779.7,2779.5,0.8994]
[1643810044572,0.00448238,2779.8,2779.5,1.79869]
[1643810044773,0.00448238,2779.8,2779.5,2.09869]
[1643810044972,0.1797,2780.4,2779.5,2.09869]
[1643810045170,1.52693757,2780.3,2779.5,1.19929]
[1643810045373,0.1797,2780.2,2779.5,1.19929]
[1643810045571,0.00448248,2779.8,2779.5,1.19929]
[1643810045771,0.00448248,2779.8,2779.6,1.19928]
[1643810045973,0.00448248,2779.8,2779.7,1.7985643]
[1643810046211,0.00264451,2780.6,2779.7,2.0985643]
[1643810046411,1.52895105,2780.6,2779.8,1.7984]
[1643810046612,1.52895105,2780.6,2779.9,0.3]
[1643810046811,2.35799176,2780.6,2780.2,0.25668839]
[1643810047015,1.52630654,2780.5,2780.2,0.89922]
[1643810047822,1.53078842,2780.5,2780.2,1.79844]
[1643810048020,1.52630654,2780.4,2780.2,0.89922]
[1643810048822,1.52630654,2780.3,2780.1,2.09841]
[1643810049861,1.52630654,2780.3,2780.1,2.99768]
[1643810050069,1.52630654,2780.2,2780.1,2.99768]
[1643810050364,1.52630654,2780.2,2780.1,3.29768]
[1643810051867,1.52630654,2780.2,2780.1,2.39841]
[1643810052271,1.52630654,2780.2,2780.1,1.79841]
[1643810053081,1.52630654,2780.2,2779.6,0.1797]
[1643810053273,1.52630654,2780.2,2779.4,2.69757]
[1643810053710,1.52630654,2780.2,2779.4,3.59698]
[1643810053711,0.0041316,2780.0,2779.4,3.59698]
[1643810053914,1.52630654,2779.9,2779.4,3.59698]
[1643810054107,1.52630654,2779.8,2779.4,3.81141593]
[1643810054407,0.0041316,2780.0,2779.5,1.19938]
[1643810054608,0.1797,2780.3,2779.5,1.19938]
[1643810054609,1.52648587,2779.9,2779.5,1.19938]
[1643810054807,1.53066859,2779.8,2779.5,0.89938]
[1643810055010,0.00418272,2779.8,2779.5,0.89938]
[1643810055414,0.00418272,2779.8,2779.6,0.89934]
[1643810055608,0.00418272,2779.8,2779.6,1.19934]
[1643810055807,0.1797,2780.4,2779.6,1.19934]
[1643810056009,1.52642854,2780.3,2779.8,0.89933]
[1643810056612,1.52642854,2780.3,2779.9,0.3]
[1643810056811,1.52642854,2780.3,2779.9,0.25933556]
[1643810057015,1.52642854,2780.2,2779.8,1.06975841]
[1643810057211,1.52642854,2780.1,2779.8,0.89933]
[1643810058062,1.52642854,2780.1,2779.9,0.23720853]
[1643810058462,1.52642854,2780.0,2779.9,0.23720853]
[1643810058657,1.52642854,2780.0,2779.8,1.7986365]
[1643810059659,1.52642854,2779.9,2779.8,0.89933]
[1643810059860,1.52642854,2779.9,2779.8,0.3]
[1643810060060,1.52642854,2779.9,2779.6,3.5971103]
[1643810060262,1.52642854,2779.9,2779.2,0.1797]
[1643810060463,5.67130391,2779.9,2779.1,0.00417978]
[1643810060665,1.52642854,2779.8,2779.0,0.13819997]
[1643810060861,1.53060696,2779.8,2779.1,0.00417959]
[1643810061101,1.53060696,2779.8,2779.3,0.8433685]
[1643810061102,0.88088429,2779.6,2779.3,0.8433685]
[1643810061707,1.52663837,2779.5,2779.3,0.8433685]
[1643810063409,3.57600142,2779.5,2779.3,0.8433685]
[1643810063614,1.52663837,2779.4,2779.3,0.8433685]
[1643810063809,4.07663837,2779.4,2779.3,0.8433685]
[1643810064008,1.52663837,2779.4,2779.3,0.7933685]
[1643810064410,1.52663837,2779.5,2779.3,0.7933685]
[1643810064611,1.06076429,2779.6,2779.3,0.7933685]
[1643810064612,1.52663837,2779.4,2779.3,0.7933685]
[1643810064851,1.52663837,2779.5,2779.3,0.7933685]
[1643810065051,1.06076429,2779.6,2779.3,0.7933685]
[1643810065052,1.52663837,2779.4,2779.3,0.7933685]
[1643810065254,1.52663837,2779.5,2779.3,0.7933685]
[1643810067263,1.52289984,2779.5,2779.3,0.7933685]
[1643810072556,1.52289984,2779.5,2779.3,1.0933685]
[1643810072755,0.67046416,2780.2,2779.4,1.15125316]
[1643810072957,0.00434828,2779.8,2779.5,1.07896]
[1643810073255,0.00434828,2779.8,2779.6,0.3]
[1643810073861,0.67046416,2780.3,2779.6,0.3]
[1643810074066,0.67046416,2780.3,2779.8,0.89928]
[1643810074262,0.67046416,2780.3,2779.6,0.3]
[1643810074463,0.67046416,2780.3,2779.5,0.6]
[1643810074662,0.85034416,2780.2,2779.4,0.1797]
[1643810074862,0.67046416,2780.1,2779.4,0.1797]
[1643810075461,0.00434836,2779.9,2779.4,0.1797]
[1643810075664,0.00434836,2779.9,2779.4,0.26620002]
[1643810076105,0.85469252,2779.9,2779.3,0.7933685]
[1643810076310,2.96081503,2779.8,2779.3,0.7933685]
[1643810076506,3.1446621,2779.8,2779.3,0.7933685]
[1643810077105,3.4,2779.7,2779.1,0.96796628]
[1643810077309,2.24550373,2779.6,2779.1,0.96796628]
[1643810077509,2.24550373,2779.6,2779.1,0.96381805]
[1643810077704,2.24550373,2779.6,2779.1,0.96796615]
[1643810078710,0.8543111,2779.8,2779.1,0.96381805]
[1643810078711,0.35958,2779.8,2779.1,0.96381805]
[1643810078915,0.18402692,2779.8,2779.1,1.14766613]
[1643810079114,0.18402692,2779.8,2779.2,0.164609]
[1643810079617,0.18402692,2779.8,2779.1,0.96796613]
[1643810079857,0.17988,2779.8,2779.3,1.79885]
[1643810080056,0.17988,2779.8,2779.4,1.79889]
[1643810080258,0.184053,2779.8,2779.4,1.79889]
[1643810081056,0.17988,2779.8,2779.4,1.79889]
[1643810081262,0.18405305,2779.8,2779.4,1.79889]
[1643810082262,0.17988,2779.8,2779.4,1.79889]
[1643810082661,0.17988,2779.8,2779.2,0.89953]
[1643810082662,0.18405305,2779.8,2779.2,0.89953]
[1643810082864,0.18405305,2779.8,2779.1,0.00417422]
[1643810082865,0.85451721,2779.8,2779.1,0.00417422]
[1643810083063,0.1797,2779.7,2779.1,0.00417422]
[1643810083265,0.78609668,2779.4,2779.1,0.00417422]
[1643810083467,0.78609668,2779.4,2779.0,2.37523908]
[1643810083468,0.96597668,2779.4,2779.0,2.07523908]
[1643810083715,1.22232121,2779.4,2779.0,2.07523908]
[1643810083913,0.96597668,2779.4,2779.0,2.07523908]
[1643810084914,0.23456321,2779.3,2779.0,2.07523908]
[1643810085314,2.86574668,2779.4,2779.0,2.07523908]
[1643810085517,0.1799,2779.5,2779.1,0.89965]
[1643810085717,0.1799,2779.8,2779.1,0.89965]
[1643810085916,0.17988,2779.9,2779.1,0.89965]
[1643810086116,0.17988,2779.9,2779.3,0.8995]
[1643810086517,0.85016416,2780.0,2779.3,0.8995]
[1643810086518,0.1797,2780.0,2779.4,0.3]
[1643810086725,0.1797,2780.0,2779.4,1.7988]
[1643810086918,0.67046416,2780.2,2779.4,2.69824]
[1643810086919,0.67046416,2780.1,2779.4,2.69824]
[1643810087118,0.67046416,2780.0,2779.4,2.69824]
[1643810087353,0.00446809,2779.8,2779.4,2.69824]
[1643810087558,1.52659931,2779.7,2779.5,0.3]
[1643810088563,1.52659931,2779.6,2779.5,1.19951]
[1643810088767,0.17988,2779.6,2779.2,1.97857]
[1643810088963,2.37694347,2779.6,2779.2,0.1797]
[1643810089163,1.52659931,2779.5,2779.2,0.1797]
[1643810089564,0.20146144,2779.4,2779.2,0.1797]
[1643810089766,1.70647931,2779.3,2779.2,0.1797]
[1643810089969,1.52659931,2779.3,2779.2,0.1797]
[1643810090567,1.52659931,2779.6,2779.2,0.1797]
[1643810090768,1.52659931,2779.6,2779.0,0.27591908]
[1643810090970,2.33990618,2779.6,2779.2,0.89958]
[1643810091225,1.52659931,2779.5,2779.2,0.89958]
[1643810091423,1.52659931,2779.5,2779.1,0.00446905]
[1643810091424,0.26655809,2779.3,2779.1,0.00446905]
[1643810091723,1.52659931,2779.2,2779.1,0.00446905]
[1643810091926,1.52659931,2779.2,2779.0,0.27591908]
[1643810092123,2.60621931,2779.2,2779.1,0.00446902]
[1643810092323,4.76559557,2779.2,2779.1,0.00446902]
[1643810093122,6.33255506,2779.2,2779.0,0.27591908]
[1643810093423,6.33255506,2779.2,2779.0,0.28038814]
[1643810093424,7.09706347,2779.1,2779.0,0.28038814]
[1643810093629,6.42659931,2779.1,2779.0,0.28038814]
[1643810093827,8.45881219,2779.1,2779.0,0.28038814]
[1643810094027,3.44984,2779.0,2778.6,0.01787894]
[1643810094228,2.32378662,2778.9,2778.5,0.0015632]
[1643810094430,2.32378662,2778.9,2778.1,0.1799]
[1643810094431,1.52659931,2778.8,2778.1,0.0015632]
[1643810094632,2.19056764,2778.7,2778.1,0.0015632]
[1643810094861,1.52659931,2778.6,2778.1,0.0015632]
[1643810095070,1.52659931,2778.6,2777.9,0.0015632]
[1643810095071,0.24166212,2778.1,2777.9,0.0015632]
[1643810095266,0.9390899,2778.2,2778.0,0.1799]
[1643810095663,0.89999,2778.6,2778.0,0.1799]
[1643810095664,2.04523809,2778.5,2778.0,0.1799]
[1643810095862,1.52715232,2778.4,2777.9,0.0015632]
[1643810096065,0.17988,2778.7,2777.9,0.0015632]
[1643810096066,1.52715232,2778.3,2777.9,0.0015632]
[1643810096363,0.17988,2778.7,2777.9,1.79991]
[1643810096565,1.52705843,2778.6,2778.0,0.1799]
[1643810096764,1.52705843,2778.6,2778.0,1.9811432]
[1643810096967,0.26685404,2778.4,2778.0,1.9811432]
[1643810097163,0.87163266,2778.7,2778.0,1.9811432]
[1643810097363,1.52704217,2778.6,2778.0,1.9811432]
[1643810097563,1.52704217,2778.6,2778.1,0.3]
[1643810097765,1.52704217,2778.6,2778.2,0.89984]
[1643810098162,1.73861274,2778.6,2778.2,0.90430983]
[1643810098363,0.21157057,2778.6,2778.2,0.90430983]
[1643810098609,0.69175266,2778.7,2778.2,0.90430983]
[1643810099010,1.52701827,2778.6,2778.2,0.90430983]
[1643810099206,1.52701827,2778.6,2778.2,1.49984]
[1643810099406,1.52701827,2778.6,2778.3,0.90428974]
[1643810099613,0.20543428,2778.6,2778.3,0.90428974]
[1643810100009,0.17988,2778.9,2778.3,0.90428974]
[1643810100208,1.52699367,2778.8,2778.3,0.90585294]
[1643810100410,1.52699367,2778.8,2778.3,0.9013832]
[1643810100610,1.52699367,2778.8,2778.5,0.00446959]
[1643810100813,0.17988,2779.2,2778.6,0.89974]
[1643810101012,1.52686579,2779.1,2778.6,0.89974]
[1643810101411,1.52686579,2779.0,2778.6,0.89974]
[1643810101613,1.52686579,2778.9,2778.6,1.2013032]
[1643810101810,1.52686579,2778.8,2778.7,1.80374935]
[1643810102114,1.52686579,2778.8,2778.7,1.0746984]
[1643810102358,1.52686579,2779.4,2778.7,0.90408935]
[1643810102561,1.52686579,2779.3,2778.7,0.90408935]
[1643810102763,1.77972701,2779.2,2778.6,2.1007932]
[1643810102960,1.52686579,2779.1,2778.9,0.00446924]
[1643810103764,1.52686579,2779.0,2778.9,0.00446924]
[1643810103968,1.52686579,2779.0,2778.6,2.1008932]
[1643810104166,0.1799,2779.3,2778.9,0.00267469]
[1643810104363,0.17988,2779.4,2778.9,0.00267469]
[1643810104364,1.52681953,2779.2,2778.9,0.00267469]
[1643810104565,1.52681953,2779.1,2778.9,0.00267469]
[1643810104769,1.52681953,2779.0,2778.9,0.00267469]
[1643810104967,0.1799,2779.3,2778.9,0.00267469]
[1643810105265,1.52681953,2779.2,2778.8,0.00267473]
[1643810106316,1.52681953,2779.2,2778.6,2.1008932]
[1643810106516,1.52681953,2779.2,2778.9,0.00267469]
[1643810107117,1.52681953,2779.1,2778.9,0.00267469]
[1643810107319,1.52681953,2779.0,2778.9,0.00267469]
[1643810107516,1.52681953,2779.0,2778.7,1.79944]
[1643810107718,0.35978,2779.4,2778.7,1.79944]
[1643810107719,1.52681953,2778.9,2778.7,1.79944]
[1643810107923,0.92951954,2779.3,2778.7,1.79944]
[1643810108120,1.52685939,2779.2,2778.7,1.79944]
[1643810108719,1.52685939,2779.2,2778.8,0.3]
[1643810109123,1.52685939,2779.1,2778.8,0.3]
[1643810109325,0.1817051,2779.5,2778.8,2.09937]
[1643810109521,0.1817051,2779.5,2778.8,3.86507]
[1643810109522,1.52668454,2779.4,2778.8,3.86507]
[1643810109720,1.52668454,2779.3,2778.8,3.86507]
[1643810109959,0.17988,2779.7,2778.8,3.86507]
[1643810110158,0.00447775,2779.5,2778.9,0.00447876]
[1643810110361,1.52665487,2779.4,2779.0,0.1799]
[1643810110556,1.52665487,2779.4,2779.0,1.07943]
[1643810110755,1.52665487,2779.4,2779.0,1.37943]
[1643810110956,1.52665487,2779.4,2779.0,2.27897]
[1643810111355,1.52665487,2779.3,2779.0,2.27897]
[1643810111555,1.52665487,2779.2,2779.0,2.27897]
[1643810111756,0.00447781,2779.5,2779.1,0.89954]
[1643810111957,1.52666487,2779.4,2779.1,1.79908]
[1643810112561,1.52666487,2779.3,2779.1,2.28656272]
[1643810112756,0.00447784,2779.5,2779.2,0.4799]
[1643810112957,0.00447784,2779.5,2779.2,2.27888]
[1643810113156,0.00447784,2779.5,2779.3,2.09872]
[1643810113360,0.00447784,2779.5,2779.4,6.4297]
[1643810113621,2.44260228,2780.1,2779.5,0.89932]
[1643810113820,2.44260228,2780.1,2779.5,1.7986011]
[1643810113821,1.52648674,2780.0,2779.5,1.7986011]
[1643810114024,1.52648674,2780.0,2779.6,0.55452204]
[1643810114221,1.52648674,2779.9,2779.6,0.3]
[1643810114424,0.67046416,2780.5,2779.7,0.89925]
[1643810114725,3.18413855,2780.8,2779.9,0.3]
[1643810114726,0.21190949,2780.4,2779.9,0.3]
[1643810114922,0.67046416,2781.0,2780.0,0.8990257]
[1643810115126,0.00448431,2780.2,2780.1,5.52776]
[1643810115321,0.00448431,2780.2,2780.1,9.4054593]
[1643810115525,0.00448431,2780.2,2780.1,6.5497793]
[1643810115821,0.00448431,2780.2,2780.1,6.4159698]
[1643810116022,0.67046416,2781.0,2780.2,0.0215372]
[1643810116222,0.0179342,2780.7,2780.3,1.97792]
[1643810116427,0.0179342,2780.7,2780.3,1.79822]
[1643810116622,0.0179342,2780.7,2780.3,2.39822]
[1643810117025,0.0179342,2780.7,2780.4,0.89911]
[1643810117226,0.24457651,2780.8,2780.5,0.3]
[1643810117462,0.24457651,2780.8,2780.0,4.4112]
[1643810117463,0.00448392,2780.6,2780.0,4.4112]
[1643810117668,0.00448392,2780.6,2779.9,3.0493]
[1643810117669,0.18418392,2780.6,2779.9,3.0493]
[1643810117863,0.18418392,2780.6,2779.7,1.173]
[1643810117864,0.00448392,2780.6,2779.7,1.173]
[1643810118062,0.1797,2780.5,2779.7,1.173]
[1643810118461,0.1797,2780.5,2779.9,1.7985]
[1643810118667,0.00448426,2780.3,2779.9,1.7985]
[1643810119568,0.1797,2780.6,2779.9,2.99785]
[1643810119771,0.00448431,2780.2,2779.9,2.99785]
[1643810120770,0.1797,2780.6,2779.9,2.99785]
[1643810120971,0.00448435,2780.2,2779.9,2.99785]
[1643810122111,0.1797,2780.6,2779.9,1.36981984]
[1643810122311,0.00448435,2780.2,2779.9,1.36981984]
[1643810122715,0.00448435,2780.2,2779.9,2.26916984]
[1643810123113,2.25410834,2780.7,2779.9,2.56916984]
[1643810123315,0.00448435,2780.2,2779.9,2.56916984]
[1643810123513,0.00448435,2780.2,2780.1,0.89937]
[1643810123719,0.00448435,2780.2,2780.1,1.19937]
[1643810123921,0.00448435,2780.2,2780.1,0.89937]
[1643810124321,0.00448435,2780.2,2779.9,2.26916984]
[1643810124322,0.17988,2780.2,2779.9,2.26916984]
[1643810124722,0.35958,2780.2,2779.9,2.26916984]
[1643810124968,0.17988,2780.0,2779.3,0.1797]
[1643810125169,1.0794,2779.9,2779.0,0.1797]
[1643810125370,2.53364794,2779.8,2778.9,3.75088656]
[1643810125567,2.53364794,2779.8,2778.9,3.7464]
[1643810125769,0.00448484,2779.7,2778.9,0.00448617]
[1643810125969,0.00448484,2779.7,2779.1,1.79915]
[1643810126171,0.18418484,2779.7,2779.1,1.79915]
[1643810126370,0.18418484,2779.7,2779.1,2.09915]
[1643810126571,0.00448484,2779.7,2779.2,0.89957]
[1643810126777,0.1797,2780.2,2779.3,0.3]
[1643810126971,0.40558548,2780.5,2779.3,0.4797]
[1643810127172,0.40558548,2780.5,2779.4,1.79869]
[1643810127173,0.0043336,2779.5,2779.4,1.79869]
[1643810127374,0.0043336,2779.5,2779.4,2.09869]
[1643810127774,0.0043336,2779.5,2779.4,2.27839]
[1643810127976,0.85556873,2780.3,2779.5,0.3]
[1643810128175,0.85556873,2780.3,2779.5,3.89743]
[1643810128176,0.00433355,2779.6,2779.5,3.89743]
[1643810128375,0.00433355,2779.6,2779.5,3.59743]
[1643810128628,0.00433355,2779.6,2779.5,3.89743]
[1643810128836,0.00433355,2779.6,2779.5,4.19743]
[1643810129231,0.85556873,2780.3,2779.8,0.89936]
[1643810129432,0.85556873,2780.3,2779.9,0.3]
[1643810130231,2.20548539,2780.2,2779.7,1.79872]
[1643810130433,2.20548539,2780.2,2779.3,0.1797]
[1643810130434,1.03004416,2780.2,2779.3,0.1797]
[1643810130644,0.67046416,2780.1,2779.2,1.79909]
[1643810130831,0.67046416,2780.1,2778.9,0.18378672]
[1643810130832,0.89971,2779.9,2778.9,0.18378672]
[1643810131633,0.17988,2779.8,2779.0,0.89971]
[1643810131834,0.00408519,2779.6,2779.0,0.89971]
[1643810132234,0.00408519,2779.6,2779.1,2.05721]
[1643810132461,0.00408519,2779.6,2779.1,2.35721]
[1643810132661,0.00408519,2779.6,2779.1,3.25682]
[1643810132861,0.17988,2779.8,2779.1,2.05721]
[1643810133062,0.00408531,2779.5,2779.1,2.35721]
[1643810133669,0.00408531,2779.5,2779.1,3.25682]
[1643810134070,0.17988,2779.8,2779.1,3.25682]
[1643810134271,0.35958,2779.8,2779.1,3.25682]
[1643810134868,1.52665909,2779.7,2779.1,3.25682]
[1643810135268,1.52665909,2779.7,2779.1,2.09922]